bitfinex-derivatives/quotes_SOLF0:USTF0_20241103
["timestamp","ask_amount","ask_price","bid_price","bid_amount"]
[1730668827082,3.056,163.67,163.62,3.0568]
[1730668829076,3.0564,163.65,163.58,21.1316117]
[1730668829275,3.88,163.68,163.58,21.1316117]
[1730668829967,3.0565,163.65,163.6,3.0572]
[1730668830774,3.88,163.68,163.6,3.0572]
[1730668830982,3.0566,163.64,163.6,3.0572]
[1730668832269,3.0571,163.61,163.57,3.0578]
[1730668833879,3.0569,163.62,163.58,3.0576]
[1730668834278,3.0569,163.62,163.55,21.1316117]
[1730668834279,3.88,163.63,163.55,21.1316117]
[1730668834689,3.88,163.63,163.52,21.1316117]
[1730668834885,3.9851,163.62,163.52,21.1316117]
[1730668835178,3.9851,163.62,163.49,21.1316117]
[1730668835373,25.1167117,163.62,163.49,21.1316117]
[1730668835581,3.0588,163.52,163.47,3.0595]
[1730668835776,3.88,163.56,163.44,25.0116117]
[1730668835988,5.2239,163.55,163.44,25.0116117]
[1730668836182,1.3595,163.54,163.44,25.0116117]
[1730668836681,3.0588,163.52,163.47,3.0595]
[1730668836885,3.0588,163.52,163.44,25.0116117]
[1730668838493,3.0588,163.52,163.48,3.0595]
[1730668841581,3.0588,163.52,163.48,3.0595]
[1730668842485,1.3595,163.54,163.46,21.1316117]
[1730668842692,1.3439,163.55,163.46,21.1316117]
[1730668843085,1.3439,163.55,163.51,3.0588]
[1730668843885,4.4022,163.55,163.51,3.0588]
[1730668844084,1.3439,163.55,163.49,3.0592]
[1730668844288,3.0586,163.53,163.49,3.0592]
[1730668844994,1.3439,163.55,163.48,13.21137457]
[1730668845378,4.4022,163.55,163.51,3.0588]
[1730668847792,1.3439,163.55,163.48,13.21137457]
[1730668848296,3.88,163.57,163.48,13.21137457]
[1730668848497,3.0581,163.56,163.52,3.0586]
[1730668849493,6.938,163.57,163.53,3.0585]
[1730668849695,3.88,163.57,163.53,3.0585]
[1730668850305,3.0581,163.56,163.53,3.0585]
[1730668850601,3.88,163.57,163.52,3.0587]
[1730668851397,3.88,163.57,163.48,13.21137457]
[1730668852392,3.0581,163.56,163.53,3.0585]
[1730668852597,1.2898,163.58,163.5,13.21137457]
[1730668852901,65.24829654,163.59,163.5,13.21137457]
[1730668853098,68.30579654,163.59,163.55,3.058]
[1730668853292,68.30579654,163.59,163.53,13.21137457]
[1730668854398,68.30579654,163.59,163.56,3.058]
[1730668855596,3.68,163.64,163.55,13.21137457]
[1730668856407,3.0569,163.63,163.59,3.0573]
[1730668856601,3.68,163.64,163.59,3.0573]
[1730668857106,3.68,163.64,163.55,13.21137457]
[1730668857107,3.057,163.62,163.58,3.0576]
[1730668857311,3.68,163.64,163.58,3.0576]
[1730668857504,1.2835,163.65,163.55,13.21137457]
[1730668857813,1.2835,163.65,163.6,3.0571]
[1730668857814,4.9635,163.65,163.6,3.0571]
[1730668859414,3.0567,163.63,163.6,3.0571]
[1730668859804,3.0567,163.63,163.58,13.21137457]
[1730668859805,3.0568,163.63,163.58,13.21137457]
[1730668860011,3.68,163.65,163.59,3.0573]
[1730668860712,3.0568,163.63,163.59,3.0573]
[1730668861518,15.92167457,163.68,163.67,3.0559]
[1730668861519,1.3729,163.68,163.67,3.0559]
[1730668861712,1.3729,163.68,163.6,13.21137457]
[1730668863311,3.0563,163.66,163.62,3.0567]
[1730668863519,18.26427457,163.68,163.57,16.89137457]
[1730668863707,3.057,163.62,163.57,16.89137457]
[1730668863901,18.26427457,163.68,163.57,16.89137457]
[1730668864200,3.0563,163.65,163.57,16.89137457]
[1730668864404,18.26427457,163.68,163.57,16.89137457]
[1730668865213,3.0565,163.64,163.6,3.0571]
[1730668866512,3.0565,163.65,163.61,3.057]
[1730668867019,3.0565,163.65,163.57,16.89137457]
[1730668867221,3.0565,163.64,163.61,3.057]
[1730668867620,18.26427457,163.68,163.55,13.21137457]
[1730668867820,13.21137457,163.66,163.52,13.21137457]
[1730668868116,1.3516,163.65,163.52,16.89137457]
[1730668868319,3.0574,163.59,163.52,16.89137457]
[1730668868520,1.3516,163.65,163.52,16.89137457]
[1730668868521,3.68,163.63,163.52,16.89137457]
[1730668869406,3.0572,163.61,163.56,3.0579]
[1730668869619,3.68,163.63,163.52,16.89137457]
[1730668869817,3.68,163.63,163.55,13.21137457]
[1730668870608,3.68,163.63,163.57,3.0578]
[1730668871308,3.68,163.63,163.44,18.3611]
[1730668871309,3.0586,163.53,163.48,3.0594]
[1730668871527,3.0586,163.53,163.46,13.21137457]
[1730668871710,3.0586,163.53,163.44,13.21137457]
[1730668872014,3.68,163.56,163.46,13.21137457]
[1730668872618,2.7302,163.57,163.46,13.21137457]
[1730668872803,6.4102,163.57,163.46,13.21137457]
[1730668873011,3.0581,163.56,163.51,3.0588]
[1730668875828,3.0587,163.53,163.49,3.0592]
[1730668876127,13.21137457,163.56,163.49,3.0592]
[1730668876825,3.0584,163.54,163.49,3.0592]
[1730668877418,3.0584,163.54,163.5,3.0591]
[1730668877617,13.21137457,163.56,163.49,1.52912616]
[1730668877828,13.21137457,163.56,163.44,16.89137457]
[1730668877829,13.21137457,163.54,163.45,1.52912616]
[1730668878036,13.21137457,163.54,163.46,4.58902616]
[1730668878319,3.0595,163.49,163.43,1.52978185]
[1730668878519,3.0595,163.49,163.44,1.52978185]
[1730668878718,3.0595,163.49,163.42,13.21137457]
[1730668878719,3.68,163.51,163.45,1.52978185]
[1730668878918,3.68,163.51,163.46,1.52978185]
[1730668878919,3.0592,163.5,163.46,1.52978185]
[1730668879121,3.0592,163.5,163.43,1.52978185]
[1730668879326,3.0592,163.5,163.46,3.0599]
[1730668879533,3.68,163.51,163.42,13.21137457]
[1730668879734,3.68,163.51,163.25,4.58993983]
[1730668879735,13.21137457,163.49,163.37,13.21137457]
[1730668879915,13.21137457,163.47,163.37,13.21137457]
[1730668880121,3.52,163.46,163.35,14.74136263]
[1730668880346,3.52,163.46,163.38,3.0614]
[1730668880628,13.21137457,163.42,163.35,1.52998806]
[1730668880814,13.21137457,163.39,163.36,1.52998806]
[1730668881017,6.2699,163.38,163.31,1.52998806]
[1730668881225,6.2699,163.38,163.29,3.01625816]
[1730668881226,13.21137457,163.37,163.32,1.52998806]
[1730668881434,7.6391,163.38,163.32,1.52998806]
[1730668881841,3.0616,163.37,163.32,4.59238806]
[1730668882526,7.6391,163.38,163.3,1.52998806]
[1730668882727,7.6391,163.38,163.33,3.0623]
[1730668882728,10.7005,163.38,163.33,3.0623]
[1730668883932,3.0616,163.37,163.32,3.0623]
[1730668884524,65.31557254,163.42,163.3,21.16436501]
[1730668884736,65.31557254,163.42,163.33,21.16436501]
[1730668885234,3.52,163.43,163.33,21.16436501]
[1730668885633,3.52,163.43,163.4,3.0609]
[1730668885935,1.0,163.45,163.36,21.16436501]
[1730668886328,3.52,163.47,163.36,21.16436501]
[1730668886329,3.52,163.47,163.43,3.0604]
[1730668887132,3.52,163.47,163.36,21.16436501]
[1730668887133,1.3576,163.48,163.36,21.16436501]
[1730668887434,4.8776,163.48,163.36,21.16436501]
[1730668888230,3.0599,163.46,163.42,3.0606]
[1730668889046,4.8776,163.48,163.42,3.0606]
[1730668889233,3.0597,163.47,163.42,3.0606]
[1730668891047,3.0597,163.47,163.36,21.16436501]
[1730668891048,4.8776,163.48,163.36,21.16436501]
[1730668892845,3.52,163.53,163.39,21.16436501]
[1730668893549,25.11816501,163.54,163.39,21.16436501]
[1730668894054,3.0591,163.51,163.46,3.0597]
[1730668894253,3.52,163.53,163.46,3.0597]
[1730668894941,3.059,163.51,163.46,3.0597]
[1730668895356,3.52,163.53,163.4,3.52]
[1730668895654,6.5786,163.53,163.4,3.52]
[1730668895948,6.5786,163.53,163.48,3.0594]
[1730668896242,3.52,163.52,163.4,3.52]
[1730668896548,3.52,163.52,163.46,3.0597]
[1730668897044,3.059,163.51,163.46,3.0597]
[1730668897747,3.059,163.51,163.47,3.0597]
[1730668899442,3.0591,163.5,163.47,3.0597]
[1730668899644,21.16436501,163.51,163.37,1.53021086]
[1730668900142,39.54436501,163.51,163.37,2.85711086]
[1730668900542,21.16436501,163.51,163.37,2.85711086]
[1730668900751,3.52,163.52,163.38,1.53021086]
[1730668901047,3.0591,163.5,163.46,3.0599]
[1730668901247,25.11816501,163.54,163.4,21.16436501]
[1730668901551,3.52,163.5,163.4,21.16436501]
[1730668901752,3.52,163.5,163.4,23.64167587]
[1730668902251,3.52,163.5,163.47,3.0596]
[1730668903748,3.52,163.5,163.41,13.22197513]
[1730668903948,6.5792,163.5,163.41,13.22197513]
[1730668905334,6.5792,163.5,163.46,3.0598]
[1730668906753,6.5792,163.5,163.41,13.22197513]
[1730668906754,3.52,163.5,163.41,13.22197513]
[1730668907051,3.52,163.5,163.43,13.22197513]
[1730668908052,3.52,163.5,163.48,3.0593]
[1730668908846,3.52,163.5,163.43,13.22197513]
[1730668909051,3.52,163.5,163.41,13.22197513]
[1730668909052,16.74197513,163.5,163.41,13.22197513]
[1730668909857,3.0596,163.48,163.41,13.22197513]
[1730668910055,16.74197513,163.5,163.41,13.22197513]
[1730668910452,3.0593,163.49,163.45,3.0599]
[1730668910949,3.0596,163.48,163.41,13.22197513]
[1730668911848,3.0594,163.49,163.45,3.06]
[1730668913660,3.52,163.5,163.43,3.0603]
[1730668913858,3.059,163.51,163.41,13.22197513]
[1730668914157,6.499,163.51,163.41,13.22197513]
[1730668914350,3.0593,163.5,163.41,13.22197513]
[1730668915153,3.0593,163.5,163.46,3.0597]
[1730668915354,3.44,163.51,163.41,13.22197513]
[1730668916048,3.44,163.51,163.48,3.0594]
[1730668917063,6.4986,163.53,163.43,13.22197513]
[1730668917355,6.4986,163.53,163.44,1.2989]
[1730668918162,6.4986,163.53,163.49,3.0592]
[1730668918556,3.44,163.53,163.46,3.0597]
[1730668918758,3.44,163.53,163.44,1.2989]
[1730668919154,6.4987,163.53,163.49,3.0592]
[1730668919976,6.4987,163.53,163.5,3.0591]
[1730668920263,3.44,163.53,163.44,1.2989]
[1730668921266,3.44,163.53,163.5,3.059]
[1730668921856,6.4986,163.53,163.5,3.059]
[1730668922958,14.53737513,163.59,163.48,13.22197513]
[1730668923155,1.2976,163.6,163.53,13.22197513]
[1730668923963,4.7678,163.63,163.55,13.22197513]
[1730668924171,3.0571,163.61,163.58,3.0575]
[1730668926357,4.7678,163.63,163.55,13.22197513]
[1730668926673,3.0575,163.59,163.55,3.058]
[1730668926968,3.0575,163.59,163.52,13.22197513]
[1730668927467,3.0575,163.59,163.56,3.0579]
[1730668927671,14.59307513,163.62,163.52,13.22197513]
[1730668927872,14.59307513,163.62,163.54,3.0583]
[1730668928262,3.0576,163.59,163.52,13.22197513]
[1730668928769,14.59307513,163.62,163.55,3.0582]
[1730668928956,3.0577,163.58,163.55,3.0582]
[1730668930270,3.0574,163.6,163.56,3.0579]
[1730668930673,14.59307513,163.62,163.52,13.22197513]
[1730668930860,3.0578,163.58,163.52,13.22197513]
[1730668931457,3.0578,163.58,163.54,3.0582]
[1730668933671,14.59307513,163.62,163.49,13.22197513]
[1730668933864,14.59307513,163.62,163.51,3.0589]
[1730668933865,3.44,163.58,163.51,3.0589]
[1730668934063,3.44,163.58,163.47,13.22197513]
[1730668934460,3.0585,163.54,163.5,3.059]
[1730668934672,3.44,163.58,163.47,13.22197513]
[1730668934673,13.22197513,163.57,163.47,13.22197513]
[1730668934894,3.44,163.58,163.44,2.245]
[1730668934895,3.0593,163.5,163.45,3.0599]
[1730668935174,3.0593,163.5,163.44,14.52087513]
[1730668935764,3.0592,163.5,163.42,13.22197513]
[1730668936364,3.0592,163.5,163.45,3.06]
[1730668939169,3.0592,163.5,163.42,13.22197513]
[1730668939170,3.0592,163.5,163.42,14.75196876]
[1730668939363,3.0592,163.5,163.46,3.0599]
[1730668944872,6.399,163.51,163.47,3.0597]
[1730668945073,1.3777,163.53,163.44,13.22197513]
[1730668945074,3.34,163.52,163.44,13.22197513]
[1730668945579,6.3988,163.52,163.48,3.0594]
[1730668945977,13.22197513,163.51,163.42,1.53002579]
[1730668946275,3.0596,163.48,163.44,3.0602]
[1730668947078,3.0595,163.48,163.44,3.0602]
[1730668947278,8.46625217,163.46,163.41,1.53002579]
[1730668947475,8.46625217,163.44,163.4,1.53002579]
[1730668947670,8.46625217,163.44,163.39,1.53002579]
[1730668947871,8.46625217,163.44,163.39,9.99627796]
[1730668948070,8.46625217,163.44,163.33,3.34]
[1730668948071,1.3967,163.45,163.42,3.0605]
[1730668948278,1.3368,163.47,163.43,8.46625217]
[1730668948786,4.3965,163.47,163.43,3.0604]
[1730668949390,4.3965,163.47,163.43,3.0603]
[1730668952083,1.3368,163.47,163.44,3.0601]
[1730668952280,1.3368,163.47,163.41,13.22618374]
[1730668952584,1.3368,163.47,163.42,1.5303523]
[1730668952790,1.3368,163.47,163.42,3.0605]
[1730668952990,1.3368,163.47,163.41,13.22618374]
[1730668953187,1.3368,163.47,163.42,1.53034655]
[1730668953389,1.3368,163.47,163.41,13.22618374]
[1730668953590,1.3368,163.47,163.42,1.53034655]
[1730668953891,1.3368,163.47,163.44,3.0601]
[1730668954982,1.3368,163.47,163.44,3.0602]
[1730668955893,1.3368,163.47,163.45,3.0599]
[1730668956394,1.3368,163.47,163.42,1.53034059]
[1730668956592,1.3368,163.47,163.43,1.53034059]
[1730668956777,1.3368,163.47,163.41,13.22618374]
[1730668957283,1.3368,163.47,163.45,3.0599]
[1730668957481,3.34,163.51,163.43,14.75653173]
[1730668957786,3.34,163.51,163.44,1.53029201]
[1730668957986,3.34,163.51,163.43,13.22618374]
[1730668958187,3.34,163.51,163.44,1.53021308]
[1730668958384,1.3967,163.53,163.45,1.53021308]
[1730668958385,3.34,163.52,163.45,1.53021308]
[1730668958591,3.34,163.52,163.43,13.22618374]
[1730668958787,3.34,163.52,163.44,1.53016763]
[1730668958987,3.34,163.52,163.45,1.53016763]
[1730668959193,6.3989,163.52,163.45,3.0599]
[1730668959390,6.3989,163.52,163.43,13.22618374]
[1730668959590,6.3989,163.52,163.44,1.5301709]
[1730668959790,3.0593,163.49,163.45,3.0599]
[1730668959995,3.34,163.52,163.43,13.22618374]
[1730668960590,3.34,163.52,163.44,1.53020436]
[1730668960790,3.0592,163.5,163.46,3.0597]
[1730668961992,21.72,163.52,163.38,13.22618374]
[1730668962193,13.22618374,163.47,163.39,1.53034005]
[1730668962399,4.7072,163.46,163.4,1.53034005]
[1730668962697,4.7072,163.46,163.41,1.53034005]
[1730668962898,6.0267,163.46,163.42,1.53034005]
[1730668963093,6.0267,163.46,163.35,13.22618374]
[1730668963891,6.0267,163.46,163.36,1.53043434]
[1730668964091,3.0603,163.44,163.4,3.0608]
[1730668964294,3.0603,163.44,163.41,1.53043434]
[1730668964497,3.0603,163.44,163.4,3.0608]
[1730668964698,3.0603,163.44,163.41,1.53044944]
[1730668964897,3.0603,163.44,163.4,3.0608]
[1730668965094,6.0267,163.46,163.41,1.53044944]
[1730668965300,3.0601,163.45,163.41,3.0608]
[1730668966701,3.0603,163.44,163.4,3.0609]
[1730668966899,3.0603,163.44,163.41,1.5304427]
[1730668967105,3.0603,163.44,163.4,3.0609]
[1730668967311,3.0603,163.44,163.41,1.53041211]
[1730668967509,3.0603,163.44,163.4,3.0609]
[1730668967802,3.0603,163.44,163.41,1.5304491]
[1730668968001,3.0603,163.44,163.4,3.0609]
[1730668968205,3.0603,163.44,163.41,1.53045685]
[1730668968404,3.0603,163.44,163.4,3.0609]
[1730668968609,3.0603,163.44,163.41,1.53045685]
[1730668968798,3.0603,163.44,163.41,3.0608]
[1730668969310,3.34,163.45,163.35,13.22618374]
[1730668969511,3.34,163.45,163.42,3.0605]
[1730668969817,5.7466,163.46,163.42,3.0605]
[1730668969997,9.0466,163.46,163.42,3.0605]
[1730668970601,5.9867,163.46,163.43,3.0603]
[1730668971810,5.9867,163.46,163.4,1.53042554]
[1730668972014,5.9867,163.46,163.41,1.53042554]
[1730668972194,5.9867,163.46,163.39,1.5304253]
[1730668972398,5.9867,163.46,163.43,3.0603]
[1730668972612,5.9867,163.46,163.38,13.22618374]
[1730668972908,3.0604,163.44,163.4,3.0608]
[1730668973410,2.6867,163.46,163.35,13.22618374]
[1730668973620,5.9867,163.46,163.41,3.0608]
[1730668974704,5.9867,163.46,163.35,13.22618374]
[1730668974705,3.0604,163.44,163.39,3.061]
[1730668975102,3.0604,163.44,163.4,1.53045636]
[1730668975307,3.0604,163.44,163.4,3.061]
[1730668975498,7.3291,163.46,163.4,3.061]
[1730668975703,7.3291,163.46,163.35,13.22618374]
[1730668975704,3.0602,163.45,163.41,3.0607]
[1730668976815,3.0603,163.44,163.41,3.0607]
[1730668977212,3.0603,163.44,163.4,3.061]
[1730668977407,11.5282154,163.44,163.4,3.061]
[1730668979518,8.4679154,163.44,163.41,3.0606]
[1730668982616,11.5281154,163.45,163.41,3.0606]
[1730668982812,8.4679154,163.45,163.39,8.4679154]
[1730668983014,3.3,163.45,163.42,3.0605]
[1730668983616,3.3,163.45,163.41,1.53051564]
[1730668983617,3.3,163.45,163.43,3.0603]
[1730668984720,9.8238154,163.5,163.44,8.4679154]
[1730668984927,3.3,163.49,163.44,8.4679154]
[1730668985121,11.7679154,163.51,163.45,8.4679154]
[1730668986233,3.0591,163.5,163.47,3.0597]
[1730668987113,8.4679154,163.51,163.45,8.4679154]
[1730668987320,2.7099,163.54,163.49,8.4679154]
[1730668987520,6.0099,163.54,163.49,8.4679154]
[1730668987713,6.0099,163.54,163.51,3.0588]
[1730668988118,2.7099,163.54,163.49,8.4679154]
[1730668988425,2.7099,163.54,163.43,3.3]
[1730668988426,1.3537,163.54,163.5,8.4679154]
[1730668988623,11.7679154,163.56,163.5,8.4679154]
[1730668989222,11.7679154,163.56,163.54,3.0582]
[1730668989223,3.3,163.56,163.54,3.0582]
[1730668989432,3.3,163.56,163.52,8.4679154]
[1730668989615,8.4679154,163.54,163.49,8.4679154]
[1730668990023,8.4679154,163.54,163.51,3.0588]
[1730668990220,8.4679154,163.54,163.49,8.4679154]
[1730668990531,8.4679154,163.55,163.5,8.4679154]
[1730668990721,77.0276033,163.57,163.5,8.4679154]
[1730668990918,80.0855033,163.57,163.5,8.4679154]
[1730668991529,8.4679154,163.54,163.52,3.0587]
[1730668991729,11.5265154,163.53,163.47,8.4679154]
[1730668991925,11.5265154,163.53,163.47,9.99778884]
[1730668991926,8.4679154,163.53,163.47,9.99778884]
[1730668992124,8.4679154,163.53,163.5,3.059]
[1730668992823,8.4679154,163.54,163.51,3.0589]
[1730668993036,8.4679154,163.56,163.51,8.4679154]
[1730668993417,8.4679154,163.54,163.49,8.4679154]
[1730668993618,68.5596879,163.57,163.47,1.52987344]
[1730668993619,8.4679154,163.52,163.47,1.52987344]
[1730668993821,8.4679154,163.5,163.44,8.4679154]
[1730668994028,8.4679154,163.5,163.47,3.0596]
[1730668995122,3.3,163.52,163.45,3.06]
[1730668995123,11.5273154,163.49,163.45,3.06]
[1730668995737,11.5273154,163.49,163.46,3.0598]
[1730668996238,11.5273154,163.49,163.43,8.4679154]
[1730668996545,8.4679154,163.48,163.42,1.5303767]
[1730668996742,8.4679154,163.48,163.25,46.81693113]
[1730668996743,8.4679154,163.46,163.4,8.4679154]
[1730668996939,8.4679154,163.42,163.41,1.53041603]
[1730668997129,8.4679154,163.42,163.37,1.53041603]
[1730668997437,3.0606,163.43,163.38,3.0613]
[1730668997628,1.3049,163.44,163.38,4.59186454]
[1730668997832,1.3049,163.44,163.39,1.53056454]
[1730668998027,3.0608,163.42,163.33,16.5340867]
[1730668998245,3.0608,163.42,163.34,1.5305934]
[1730668998534,3.3,163.41,163.35,1.5305934]
[1730668998839,3.0613,163.39,163.34,3.0621]
[1730668999039,3.3,163.41,163.31,13.2340867]
[1730668999335,3.3,163.41,163.33,13.2340867]
[1730668999725,3.3,163.41,163.39,3.0611]
[1730668999935,4.6049,163.44,163.39,3.0611]
[1730669000134,4.6049,163.44,163.36,13.2340867]
[1730669000443,4.6049,163.44,163.4,3.0609]
[1730669000750,3.3,163.44,163.42,3.0605]
[1730669000932,1.4009,163.45,163.38,13.2340867]
[1730669001253,7.7225,163.48,163.43,3.0603]
[1730669002445,7.7225,163.48,163.44,3.0601]
[1730669003031,4.6629,163.48,163.41,3.0608]
[1730669003243,4.6629,163.48,163.38,13.2340867]
[1730669003638,1.3629,163.48,163.38,13.2340867]
[1730669004040,1.3629,163.48,163.44,3.0601]
[1730669004836,4.4226,163.48,163.44,3.0601]
[1730669006547,3.0599,163.47,163.38,13.2340867]
[1730669007649,3.0599,163.47,163.42,3.0605]
[1730669007945,1.3629,163.48,163.38,13.2340867]
[1730669009047,1.3629,163.48,163.44,3.0601]
[1730669009649,3.0603,163.44,163.4,3.061]
[1730669009851,2.6596,163.48,163.35,3.3]
[1730669010344,3.0601,163.46,163.41,3.0608]
[1730669010752,13.2340867,163.47,163.34,14.6404867]
[1730669010948,3.0604,163.44,163.39,3.0611]
[1730669011745,3.0604,163.44,163.4,3.0609]
[1730669013242,3.3,163.45,163.34,14.6404867]
[1730669013243,3.0606,163.43,163.37,3.0615]
[1730669013445,16.5340867,163.45,163.34,1.4064]
[1730669013949,16.5340867,163.45,163.37,3.0614]
[1730669014353,3.0607,163.42,163.37,3.0614]
[1730669014543,3.0607,163.42,163.38,3.0613]
[1730669014739,16.5340867,163.45,163.33,3.3]
[1730669014939,3.0606,163.43,163.33,3.3]
[1730669015149,3.0606,163.43,163.38,3.0612]
[1730669016251,3.0606,163.43,163.33,3.3]
[1730669016553,3.0606,163.43,163.39,3.0611]
[1730669017152,3.3,163.45,163.34,13.2340867]
[1730669017453,3.3,163.45,163.34,14.6203867]
[1730669017861,6.3602,163.45,163.34,14.6203867]
[1730669019052,3.3,163.45,163.34,14.6203867]
[1730669019252,3.3,163.45,163.37,13.2340867]
[1730669019756,65.29446336,163.47,163.39,13.2340867]
[1730669019958,65.29446336,163.47,163.39,16.5340867]
[1730669021462,65.29446336,163.47,163.45,3.06]
[1730669021659,65.29446336,163.47,163.39,16.5340867]
[1730669022063,65.29446336,163.47,163.43,3.0603]
[1730669022958,65.29446336,163.47,163.39,16.5340867]
[1730669023155,65.29446336,163.47,163.46,3.0599]
[1730669024461,65.29446336,163.47,163.39,16.5340867]
[1730669024667,65.29446336,163.47,163.45,3.0599]
[1730669026959,65.29446336,163.47,163.46,3.0599]
[1730669027156,3.0592,163.5,163.46,3.0599]
[1730669030670,3.0596,163.48,163.44,3.0601]
[1730669031068,3.0596,163.48,163.39,16.5340867]
[1730669031764,3.0601,163.45,163.39,3.3]
[1730669032364,16.2939867,163.46,163.42,3.0605]
[1730669032767,16.2939867,163.46,163.39,3.3]
[1730669032957,3.0599,163.46,163.43,3.0604]
[1730669033370,13.2340867,163.48,163.39,3.3]
[1730669033676,3.0602,163.45,163.36,13.2340867]
[1730669034063,4.0794,163.52,163.41,13.2340867]
[1730669034264,4.0794,163.52,163.49,3.0593]
[1730669034768,2.7167,163.52,163.49,3.0593]
[1730669036566,2.7167,163.52,163.48,3.0594]
[1730669036874,5.7756,163.52,163.48,3.0594]
[1730669037666,13.2340867,163.54,163.44,13.2340867]
[1730669038163,16.5340867,163.54,163.44,13.2340867]
[1730669038572,19.5925867,163.54,163.47,3.0597]
[1730669038870,19.5925867,163.54,163.44,13.2340867]
[1730669039569,19.5925867,163.54,163.49,3.0592]
[1730669039777,16.5340867,163.54,163.44,13.2340867]
[1730669039979,16.5340867,163.54,163.5,3.059]
[1730669040469,13.2340867,163.54,163.44,13.2340867]
[1730669040673,16.2924867,163.54,163.5,3.059]
[1730669040870,3.3,163.55,163.44,13.2340867]
[1730669041077,3.3,163.55,163.46,13.2340867]
[1730669041569,3.3,163.55,163.42,5.5489]
[1730669041570,3.3,163.55,163.43,13.2340867]
[1730669041771,3.0586,163.53,163.49,3.0591]
[1730669042379,3.0589,163.52,163.47,3.0596]
[1730669042679,3.0589,163.52,163.41,3.10559701]
[1730669042680,13.2340867,163.52,163.41,13.2340867]
[1730669042877,3.0595,163.48,163.44,3.0601]
[1730669043272,16.5340867,163.5,163.39,16.5340867]
[1730669043465,3.0599,163.46,163.42,3.0606]
[1730669043875,13.2340867,163.48,163.37,4.6272]
[1730669044077,3.0597,163.47,163.43,3.0604]
[1730669045767,3.0596,163.48,163.44,3.0602]
[1730669047183,3.0597,163.47,163.44,3.0602]
[1730669047570,16.5340867,163.5,163.39,13.2340867]
[1730669048284,3.0596,163.48,163.44,3.0601]
[1730669048674,16.5340867,163.5,163.42,3.0606]
[1730669049194,3.06,163.46,163.43,3.0604]
[1730669050381,16.5340867,163.5,163.41,3.0607]
[1730669050382,3.0602,163.45,163.41,3.0607]
[1730669050569,13.2340867,163.48,163.41,3.0607]
[1730669051175,13.2340867,163.45,163.39,3.0611]
[1730669051382,7.3054,163.44,163.39,3.0611]
[1730669051686,3.0609,163.41,163.37,3.0614]
[1730669051888,13.2340867,163.41,163.29,14.5370867]
[1730669052079,13.2340867,163.39,163.27,13.2340867]
[1730669052276,16.5340867,163.39,163.28,3.3]
[1730669052471,3.3,163.39,163.29,13.2340867]
[1730669052781,3.3,163.39,163.32,13.2340867]
[1730669052984,3.3,163.39,163.36,3.0616]
[1730669053982,3.3,163.39,163.32,13.2340867]
[1730669054191,17.2394867,163.44,163.28,3.3]
[1730669054192,17.2394867,163.44,163.34,13.2340867]
[1730669054397,3.3,163.42,163.31,16.5340867]
[1730669054687,3.0608,163.41,163.38,3.0613]
[1730669055073,3.061,163.4,163.35,3.0618]
[1730669055478,13.2340867,163.41,163.35,3.0618]
[1730669055773,3.0612,163.39,163.35,3.0618]
[1730669057981,13.2340867,163.41,163.31,3.3]
[1730669058187,3.0614,163.38,163.31,3.3]
[1730669058586,13.2340867,163.41,163.29,13.2340867]
[1730669058888,3.0612,163.39,163.35,3.0619]
[1730669059394,3.0611,163.4,163.36,3.0616]
[1730669060682,3.0613,163.39,163.36,3.0616]
[1730669061292,2.7039,163.38,163.36,3.0616]
[1730669062690,5.7654,163.38,163.34,3.062]
[1730669063004,5.7654,163.38,163.29,13.2340867]
[1730669064382,5.7654,163.38,163.34,3.062]
[1730669065587,3.0616,163.37,163.34,3.062]
[1730669065791,13.2340867,163.43,163.38,3.0613]
[1730669066104,3.3,163.42,163.38,3.0613]
[1730669066597,2.6758,163.43,163.34,13.2340867]